[Event "Slovakia Open 2022"]
[Site "Bratislava"]
[Date "2022.10.01"]
[Round "6.21"]
[White "Hasala, Richard"]
[Black "Rosol, Alexander"]
[Result "1/2-1/2"]
[ECO "D94"]
[WhiteElo "1537"]
[BlackElo "2041"]
[Annotator "TA"]
[PlyCount "98"]
[EventDate "2022.09.30"]
[EventCountry "SVK"]
[SourceTitle "playchess.com"]
[Source "ChessBase"]
[SourceQuality "1"]
[TimeControl "2700+10"]

{[%evp 15,98,22,74,0,24,0,1,-48,-46,-62,-58,-54,-37,-54,-33,-78,-52,-72,-45,-81,-77,-78,-64,-93,-41,-85,-66,-96,-25,-83,-63,-69,-52,-59,-42,-107,-89,-108,-103,-120,-122,-138,-112,-164,-75,-135,-92,-132,-98,-82,-38,-35,0,0,0,0,0,0,0,-40,-29,-85,-80,-98,-79,-87,0,0,0,0,0,-28,-39,-35,-32,-32,-32,-60,0,0,0,0,0,0,0]} 1. c4 {[%emt 0:00:05]} Nf6 {[%emt 0:00:05]} 2. d4 {[%emt 0:00:01]} c5 {[%emt 0:00:04]} 3. e3 {[%emt 0:00:06]} g6 {[%emt 0:00:08]} 4. Nf3 {[%emt 0:00:02]} Bg7 {[%emt 0:00:02]} 5. Nc3 {[%emt 0:00:01]} O-O {[%emt 0:00:06]} 6. Be2 {[%emt 0:00:03]} cxd4 {[%emt 0:00:13]} 7. exd4 {[%emt 0:00:02]} b6 {[%emt 0:00:19]} 8. O-O {[%emt 0:00:06]} d5 {[%emt 0:00:06] [#]} (8... Bb7 $11 {keeps the balance.}) 9. b3 {[%emt 0:00:37] D94: Grünfeld: 4 Nf3 Bg7 5 e3.} (9. Ne5 $1 $16) 9... e6 {[%emt 0:00:15]} 10. Bb2 {[%emt 0:00:05]} Bb7 {[%emt 0:00:19] [#]} 11. cxd5 $146 {[%emt 0:01:12]} (11. Ne5 $11) ({Predecessor:} 11. Rc1 Nc6 12. Re1 Re8 13. Ne5 dxc4 14. bxc4 Nxd4 15. Nb5 Nxe2+ 16. Rxe2 Ne4 17. f3 {0-1 (36) Maklakova,N (1828)-Kostenko,P (2429) Chess.com INT 2020}) 11... Nxd5 $15 {[%emt 0:00:10]} 12. Nxd5 {[%emt 0:00:06]} Qxd5 {[%emt 0:00:13]} 13. Bc4 {[%emt 0:00:07]} Qh5 {[%emt 0:00:11]} 14. Be2 {[%emt 0:00:38]} Qa5 {[%emt 0:00:51]} 15. a3 {[%emt 0:01:49]} Nd7 {[%emt 0:02:29]} 16. Qd3 {[%emt 0:01:18]} Rfd8 {[%emt 0:02:32]} 17. b4 {[%emt 0:01:22]} Qd5 {[%emt 0:00:21]} 18. Rfd1 {[%emt 0:02:31]} Rac8 {[%emt 0:01:03]} 19. Rac1 {[%emt 0:05:39]} Nb8 {[%emt 0:01:29]} (19... Bh6 $17 20. Rxc8 Rxc8) 20. Ne1 {[%emt 0:02:04]} Qa2 {[%emt 0:00:48]} 21. Qb1 {[%emt 0:05:22]} Qb3 {[%emt 0:02:02]} ({Black should play} 21... Qxb1 $17 22. Rxb1 Be4) 22. Bf3 {[%emt 0:04:57]} (22. Rxc8 $11 Rxc8 23. Rc1) 22... Bxf3 {[%emt 0:02:21]} 23. Nxf3 {[%emt 0:00:24]} Nc6 {[%emt 0:00:22]} 24. Rc3 {[%emt 0:01:06]} Qa4 {[%emt 0:00:57]} 25. Rcd3 {[%emt 0:00:42]} ({Better is} 25. h3 $15) 25... Ne7 $17 {[%emt 0:00:07]} 26. Ne5 {[%emt 0:11:39]} Rc2 {[%emt 0:01:06][%cal Oc2b2]} 27. Nf3 {[%emt 0:03:35]} Nd5 {[%emt 0:00:44]} 28. Ne1 {[%emt 0:00:41]} Rc4 {[%emt 0:00:10]} 29. g3 {[%emt 0:01:15]} (29. Rc1 $17 b5 30. Nc2) 29... Nc7 {[%emt 0:01:25]} (29... a5 $19 {has better winning chances.} 30. bxa5 bxa5) 30. f4 {[%emt 0:00:47]} ({White should try} 30. Rc1 Rxc1 31. Qxc1) 30... Nb5 {[%emt 0:00:35][%cal Rg7d4]} 31. d5 {[%emt 0:00:54]} Bxb2 {[%emt 0:01:13]} 32. Qxb2 {[%emt 0:00:01]} exd5 {[%emt 0:00:16]} 33. Rxd5 {[%emt 0:00:17][%cal Rd5d8] [#]} Re8 {[%emt 0:00:02] ...Nc3 is the strong threat.} 34. Rd8 {[%emt 0:00:25][%cal Rd8e8]} Rce4 {[%emt 0:00:12][%cal Oe4e1]} 35. Nf3 {[%emt 0:00:18] aiming for Ne5.} Qxa3 {[%emt 0:00:54]} 36. Qxa3 {[%emt 0:00:27]} Nxa3 {[%emt 0:00:02]} 37. Rxe8+ {[%emt 0:00:02]} Rxe8 $11 {[%emt 0:00:03][%mdl 4096] Endgame KRN-KRN} 38. Kf2 {[%emt 0:00:08]} (38. Rd7 $11 {remains equal.}) 38... Re7 $17 {[%emt 0:00:40]} 39. Ne5 {[%emt 0:00:08]} Nb5 {[%emt 0:00:35]} 40. Rd5 {[%emt 0:00:16]} Nc7 {[%emt 0:00:24]} (40... Nc3 $17 41. Rd3 Rc7) 41. Rd8+ $11 {[%emt 0:00:01]} Kg7 {[%emt 0:00:02]} 42. Nc6 $1 {[%emt 0:00:32][%csl LRa7,LRe7]} Ne6 {[%emt 0:01:15]} 43. Rd6 {[%emt 0:00:14]} (43. Ra8 $5 {[%cal Rc6e7]} Rc7 44. b5 $11) 43... Rc7 {[%emt 0:00:13]} 44. b5 {[%emt 0:00:11]} Nc5 {[%emt 0:00:14] White must now prevent ...Ne4+.} 45. Ke3 {[%emt 0:00:05] Inhibits Ne4.} Nb7 {[%emt 0:00:29]} 46. Rd2 {[%emt 0:00:17]} Na5 {[%emt 0:01:09]} (46... Kf6 $15) 47. Nxa5 $1 {[%emt 0:00:09] The position is equal.} Re7+ {[%emt 0:00:23]} 48. Kf3 {[%emt 0:00:05] Hoping for Nc6.} bxa5 {[%emt 0:00:05]} 49. Ra2 {[%emt 0:00:01]} h5 {[%emt 0:00:30] Weighted Error Value: White=0.24 (precise) /Black=0.23 (precise)} 1/2-1/2

[Event "Slovakia Open 2022"]
[Site "Bratislava"]
[Date "2022.10.01"]
[Round "6.22"]
[White "Rosol, Philip"]
[Black "Tomcikova, Zuzana"]
[Result "1-0"]
[ECO "E73"]
[WhiteElo "1885"]
[BlackElo "1796"]
[Annotator "NA COMBH"]
[PlyCount "97"]
[EventDate "2022.09.30"]
[EventCountry "SVK"]
[SourceTitle "playchess.com"]
[Source "ChessBase"]
[SourceQuality "1"]
[TimeControl "2700+10"]

1. d4 {[%emt 0:00:05]} Nf6 {[%emt 0:00:03]} 2. c4 {[%emt 0:00:02]} g6 {[%emt 0:00:05]} 3. Nc3 {[%emt 0:00:04]} d6 {[%emt 0:00:17]} 4. e4 {[%emt 0:00:11]} Bg7 {[%emt 0:00:30]} 5. Be2 {[%emt 0:00:04]} O-O {[%emt 0:00:19]} 6. Bg5 {[%emt 0:00:04]} Nbd7 {[%emt 0:02:43]} 7. Qd2 {[%emt 0:01:10]} e5 {[%emt 0:02:46]} 8. d5 {[%emt 0:00:19]} a5 {[%emt 0:01:24]} 9. g4 {[%emt 0:02:35]} Nc5 {[%emt 0:03:15]} 10. f3 {[%emt 0:03:34]} Re8 {[%emt 0:09:30]} 11. h4 {[%emt 0:01:25]} c6 {[%emt 0:00:54]} 12. h5 {[%emt 0:03:23]} Qc7 {[%emt 0:03:55]} 13. Rd1 {[%emt 0:07:50]} Rd8 {[%emt 0:06:47]} 14. hxg6 {[%emt 0:05:53]} fxg6 {[%emt 0:00:22]} 15. Nh3 {[%emt 0:00:48]} Qf7 {[%emt 0:05:47]} 16. Be3 {[%emt 0:02:22]} cxd5 {[%emt 0:02:31]} 17. Nxd5 {[%emt 0:01:36]} Nxd5 {[%emt 0:00:33]} 18. cxd5 {[%emt 0:02:11]} Bf6 {[%emt 0:00:46]} 19. Rc1 {[%emt 0:03:31]} b6 {[%emt 0:00:18]} 20. Ng5 {[%emt 0:02:01]} Bxg5 {[%emt 0:00:16]} 21. Bxg5 {[%emt 0:00:01]} Rd7 {[%emt 0:00:24]} 22. O-O {[%emt 0:01:32]} Ba6 {[%emt 0:01:31]} 23. Bxa6 {[%emt 0:00:09]} Rxa6 {[%emt 0:00:02]} 24. Qe2 {[%emt 0:00:35]} Ra8 {[%emt 0:00:05]} 25. Qb5 {[%emt 0:01:22]} Rb8 {[%emt 0:02:08]} 26. a3 {[%emt 0:01:06]} a4 {[%emt 0:00:16]} 27. Be3 {[%emt 0:00:21]} Rdb7 {[%emt 0:00:40]} 28. Rc2 {[%emt 0:00:39]} Qd7 {[%emt 0:00:08]} 29. Qc4 {[%emt 0:01:39]} Rc8 {[%emt 0:00:24]} 30. Rfc1 {[%emt 0:01:52]} Rbc7 {[%emt 0:00:04]} 31. Qb4 {[%emt 0:00:54]} Rb7 {[%emt 0:01:17]} 32. Rc4 {[%emt 0:00:44]} Ra8 {[%emt 0:00:08]} 33. Qc3 {[%emt 0:00:20]} Rab8 {[%emt 0:00:07]} 34. Qc2 {[%emt 0:00:07]} Ra8 {[%emt 0:00:05]} 35. Kg2 {[%emt 0:00:08]} b5 {[%emt 0:00:15]} 36. Rc3 {[%emt 0:00:10]} Nb3 {[%emt 0:00:22]} 37. Rc8+ {[%emt 0:00:05]} Rxc8 {[%emt 0:00:01]} 38. Qxc8+ {[%emt 0:00:03]} Qxc8 {[%emt 0:00:01]} 39. Rxc8+ {[%emt 0:00:02]} Kf7 {[%emt 0:00:03]} 40. Rh8 {[%emt 0:00:37]} Kf6 {[%emt 0:00:29]} 41. Bh6 {[%emt 0:00:13]} g5 {[%emt 0:00:14]} 42. Rg8 {[%emt 0:00:06]} Nd4 {[%emt 0:00:13]} 43. Bxg5+ {[%emt 0:00:13]} Kf7 {[%emt 0:00:02]} 44. Rd8 {[%emt 0:00:07]} Rb6 {[%emt 0:00:12]} 45. Be3 {[%emt 0:00:12]} Ra6 {[%emt 0:00:08]} 46. Bxd4 {[%emt 0:00:08]} exd4 {[%emt 0:00:02]} 47. Kf2 {[%emt 0:00:05]} Kf6 {[%emt 0:00:18]} 48. Ke2 {[%emt 0:00:16]} Ke5 {[%emt 0:00:05]} 49. Rf8 {[%emt 0:00:03]} 1-0

[Event "Slovakia Open 2022"]
[Site "Bratislava"]
[Date "2022.10.01"]
[Round "6.23"]
[White "Hlavac, Tomas"]
[Black "Kucera, Michal"]
[Result "1-0"]
[ECO "B31"]
[WhiteElo "1554"]
[BlackElo "1927"]
[Annotator "TA"]
[PlyCount "89"]
[EventDate "2022.09.30"]
[EventCountry "SVK"]
[SourceTitle "playchess.com"]
[Source "ChessBase"]
[SourceQuality "1"]
[TimeControl "2700+10"]

{[%evp 13,89,14,37,36,39,22,18,0,40,-67,35,34,33,28,33,7,24,2,35,20,62,64,60,62,59,58,63,39,79,81,74,68,67,60,115,50,212,113,127,133,217,220,257,216,205,213,245,258,250,248,272,249,254,258,235,184,336,-1721,-1973,-1816,-1755,-1946,-1514,-29952,-29956,-6087,-2096,-2038,-1617,-1299,29982,29983,29982,29983,29984,29984,29984,29984]} 1. e4 {[%emt 0:00:05]} c5 {[%emt 0:00:01]} 2. Nf3 {[%emt 0:00:02]} Nc6 {[%emt 0:00:10]} 3. Bb5 {[%emt 0:00:03]} g6 {[%emt 0:00:00]} 4. Bxc6 {[%emt 0:00:03]} dxc6 {[%emt 0:00:00]} 5. O-O {[%emt 0:00:08]} Bg7 {[%emt 0:00:08]} 6. Re1 {[%emt 0:00:45]} e5 {[%emt 0:00:15]} 7. d3 {[%emt 0:00:20]} f6 {[%emt 0:00:29]} 8. Be3 {[%emt 0:00:19] B31: Sicilian: 2...Nc6 3 Bb5 g6.} b6 {[%emt 0:00:03]} 9. h3 {[%emt 0:00:55]} Nh6 {[%emt 0:00:17]} 10. Nbd2 {[%emt 0:00:48] The position is equal.} Be6 {[%emt 0:01:58] [#]} 11. c3 $146 {[%emt 0:00:14]} (11. a3 $14) ({Predecessor:} 11. Qe2 O-O 12. Rad1 Qc7 13. Nf1 Rad8 14. c3 Bxa2 15. b4 Bb3 16. Rb1 c4 17. dxc4 Ba4 18. Qa2 {1-0 (18) Abiad Parra,C (1904)-Guinan Lopez,J (2012) Punto Fijo 2013}) 11... O-O {[%emt 0:03:02]} (11... Qxd3 $15 12. b4 cxb4 13. cxb4 O-O) 12. d4 $14 {[%emt 0:00:21]} cxd4 {[%emt 0:00:19]} 13. cxd4 {[%emt 0:00:05]} Nf7 {[%emt 0:04:49]} 14. b3 {[%emt 0:01:19]} Qd7 {[%emt 0:02:17]} 15. Qe2 {[%emt 0:00:34]} Rfd8 {[%emt 0:05:43][%cal Re5d4]} 16. Rad1 {[%emt 0:00:22]} (16. dxe5 {is more complex.} fxe5 17. Ng5 Bf6 18. Ndf3) 16... Qb7 {[%emt 0:01:18]} 17. dxe5 $1 {[%emt 0:03:13]} Nxe5 {[%emt 0:07:04]} 18. Nxe5 {[%emt 0:00:12]} fxe5 {[%emt 0:00:02]} 19. Bg5 {[%emt 0:01:04]} Rd7 {[%emt 0:01:57]} 20. Nc4 {[%emt 0:01:56]} h6 {[%emt 0:00:37]} 21. Rxd7 {[%emt 0:00:16]} Qxd7 {[%emt 0:00:03]} 22. Rd1 {[%emt 0:00:04]} Qf7 {[%emt 0:01:39]} 23. Bh4 {[%emt 0:01:18] White is more active.} b5 {[%emt 0:06:38]} (23... Bxc4 $14 24. Qxc4 Qxc4 25. bxc4 b5) 24. Nd2 {[%emt 0:00:59]} ({White should try} 24. Nd6 $16 Qc7 25. Qb2) 24... Bf6 $2 {[%emt 0:01:05]} ({Black should play} 24... Qc7 $14) 25. Bg3 {[%emt 0:00:16]} (25. Bxf6 $18 Qxf6 26. Nf3) 25... Qc7 {[%emt 0:00:26]} 26. Nf3 {[%emt 0:00:16]} c5 {[%emt 0:00:50]} (26... Kh7 $16 {was called for.} 27. Qb2 Rd8 28. Rxd8 Qxd8) 27. Qxb5 $18 {[%emt 0:00:37]} Rb8 {[%emt 0:00:26]} 28. Qe2 {[%emt 0:01:02]} c4 {[%emt 0:00:55]} 29. bxc4 {[%emt 0:01:37]} Bxc4 {[%emt 0:00:07]} 30. Qc2 {[%emt 0:00:11]} Rc8 {[%emt 0:00:32]} 31. Rc1 {[%emt 0:00:04]} Qe7 {[%emt 0:00:57]} 32. Qa4 {[%emt 0:01:13]} Be6 {[%emt 0:00:05]} 33. Rxc8+ {[%emt 0:00:24]} Bxc8 {[%emt 0:00:01]} 34. Qa5 {[%emt 0:00:29][%cal Rg3e5]} Qd8 $2 {[%emt 0:03:45]} (34... Bb7 35. Qc3 (35. Bxe5 Bxe5 36. Nxe5 Bxe4 $16) (35. Nxe5 Bxe4 36. Qb5 Kh7 $16) 35... Kh7 36. Bxe5 Bxe5 37. Nxe5 Bxe4) 35. Bxe5 $4 {[%emt 0:00:30][%mdl 8192]} Qxa5 $19 {[%emt 0:00:08]} 36. Bxf6 {[%emt 0:00:11]} Qxa2 {[%emt 0:00:10] [#] Strongly threatening ...Qb1+.} 37. e5 {[%emt 0:00:02]} Qd5 {[%emt 0:00:18] ...Bb7 is the strong threat.} 38. Nh4 {[%emt 0:00:07]} g5 {[%emt 0:00:14]} 39. Ng6 {[%emt 0:00:05]} Kf7 {[%emt 0:00:24]} 40. Ne7 {[%emt 0:00:05]} Qe4 {[%emt 0:00:22] ( -> ...Ba6)} 41. Nxc8 {[%emt 0:00:10]} a5 $4 {[%emt 0:00:03][%mdl 8192] [#]} (41... Qe1+ $19 42. Kh2 Qxf2 43. Nd6+ Ke6) 42. Nd6+ {[%emt 0:00:06] White mates.} Ke6 {[%emt 0:00:12]} 43. Nxe4 {[%emt 0:00:02]} a4 {[%emt 0:00:04]} 44. Nc3 {[%emt 0:00:02]} a3 {[%emt 0:00:01]} 45. Kf1 {[%emt 0:00:06] A wild game.  Weighted Error Value: White=0.59/Black=0.68} 1-0

[Event "Slovakia Open 2022"]
[Site "Bratislava"]
[Date "2022.10.01"]
[Round "6.24"]
[White "Dolnik, Michal"]
[Black "Pekar, Matus"]
[Result "0-1"]
[ECO "B08"]
[WhiteElo "1485"]
[BlackElo "1679"]
[Annotator "NA RC COMBH"]
[PlyCount "50"]
[EventDate "2022.09.30"]
[EventCountry "SVK"]
[SourceTitle "playchess.com"]
[Source "ChessBase"]
[SourceQuality "1"]
[TimeControl "2700+10"]

1. e4 {[%emt 0:00:48]} d6 {[%emt 0:00:52]} 2. d4 {[%emt 0:00:24]} Nf6 {[%emt 0:00:01]} 3. Nc3 {[%emt 0:00:07]} g6 {[%emt 0:00:02]} 4. Nf3 {[%emt 0:00:09]} Bg7 {[%emt 0:00:04]} 5. Bc4 {[%emt 0:00:05]} c6 {[%emt 0:00:04]} 6. a3 {[%emt 0:00:24]} Nbd7 {[%emt 0:00:19]} 7. e5 {[%emt 0:00:24]} Nd5 {[%emt 0:03:01]} 8. Nxd5 {[%emt 0:01:23]} cxd5 {[%emt 0:00:09]} 9. Bxd5 {[%emt 0:00:07]} Qa5+ {[%emt 0:00:21]} 10. Bd2 {[%emt 0:00:43]} Qxd5 {[%emt 0:00:50]} 11. c4 {[%emt 0:00:18]} Qe4+ {[%emt 0:00:07]} 12. Be3 {[%emt 0:00:03]} dxe5 {[%emt 0:00:17]} 13. dxe5 {[%emt 0:00:04]} Qxc4 {[%emt 0:00:30]} 14. Rc1 {[%emt 0:00:06]} Qe4 {[%emt 0:01:03]} 15. O-O {[%emt 0:00:07]} Nxe5 {[%emt 0:00:15]} 16. Nxe5 {[%emt 0:00:04]} Bxe5 {[%emt 0:01:00]} 17. Re1 {[%emt 0:00:17]} Qh4 {[%emt 0:03:32]} 18. f4 {[%emt 0:00:25]} Bf6 {[%emt 0:02:56]} 19. Rc7 {[%emt 0:00:14]} O-O {[%emt 0:00:18]} 20. Bf2 {[%emt 0:00:51]} Qxf4 {[%emt 0:01:51]} 21. Bg3 {[%emt 0:00:19]} Qg5 {[%emt 0:00:38]} 22. Qa4 {[%emt 0:01:11]} Rd8 {[%emt 0:00:49]} 23. Bf4 {[%emt 0:00:42]} Qd5 {[%emt 0:01:34]} 24. Be3 {[%emt 0:00:58]} b5 {[%emt 0:01:45]} 25. Qb4 {[%emt 0:00:21]} Bb7 {[%emt 0:00:23]} 0-1

[Event "Slovakia Open 2022"]
[Site "Bratislava"]
[Date "2022.10.01"]
[Round "6.25"]
[White "Melih, Mario"]
[Black "Malaschitz, Teodor"]
[Result "1/2-1/2"]
[ECO "D53"]
[WhiteElo "1633"]
[BlackElo "1448"]
[Annotator "NA RC COMBH"]
[PlyCount "63"]
[EventDate "2022.09.30"]
[EventCountry "SVK"]
[SourceTitle "playchess.com"]
[Source "ChessBase"]
[SourceQuality "1"]
[TimeControl "2700+10"]

1. Nf3 {[%emt 0:00:06]} Nf6 {[%emt 0:00:08]} 2. c4 {[%emt 0:00:01]} e6 {[%emt 0:00:01]} 3. d4 {[%emt 0:00:02]} d5 {[%emt 0:00:01]} 4. Nc3 {[%emt 0:00:03]} c6 {[%emt 0:00:00]} 5. Bg5 {[%emt 0:00:07]} Be7 {[%emt 0:00:02]} 6. e3 {[%emt 0:00:02]} h6 {[%emt 0:00:01]} 7. Bh4 {[%emt 0:00:15]} O-O {[%emt 0:00:24]} 8. Bd3 {[%emt 0:00:26]} dxc4 {[%emt 0:00:10]} 9. Bxc4 {[%emt 0:00:02]} Nd5 {[%emt 0:00:01]} 10. Bg3 {[%emt 0:00:08]} Bd6 {[%emt 0:00:06]} 11. O-O {[%emt 0:01:07]} Bxg3 {[%emt 0:00:06]} 12. hxg3 {[%emt 0:00:03]} Nd7 {[%emt 0:00:05]} 13. e4 {[%emt 0:00:20]} Nxc3 {[%emt 0:00:03]} 14. bxc3 {[%emt 0:00:02]} b6 {[%emt 0:00:07]} 15. Qe2 {[%emt 0:03:27]} Bb7 {[%emt 0:00:15]} 16. Rfd1 {[%emt 0:00:12]} Qc7 {[%emt 0:00:03]} 17. Rac1 {[%emt 0:00:17]} Rac8 {[%emt 0:01:13]} 18. a4 {[%emt 0:01:21]} Qb8 {[%emt 0:01:00]} 19. e5 {[%emt 0:08:28]} Qa8 {[%emt 0:00:24]} 20. Qb2 {[%emt 0:00:02]} c5 {[%emt 0:04:53]} 21. Nd2 {[%emt 0:13:16]} cxd4 {[%emt 0:00:39]} 22. cxd4 {[%emt 0:00:10]} Bd5 {[%emt 0:00:10]} 23. Bf1 {[%emt 0:00:10]} Qb7 {[%emt 0:00:10]} 24. a5 {[%emt 0:00:10]} Rfd8 {[%emt 0:00:55]} 25. Ra1 {[%emt 0:02:48]} Rf8 {[%emt 0:00:05]} 26. axb6 {[%emt 0:00:20]} Qxb6 {[%emt 0:00:10]} 27. Qxb6 {[%emt 0:00:10]} axb6 {[%emt 0:01:10]} 28. Rdc1 {[%emt 0:01:26]} Rxc1 {[%emt 0:00:10]} 29. Rxc1 {[%emt 0:00:10]} Nb8 {[%emt 0:00:10]} 30. Rc7 {[%emt 0:00:10]} Rd8 {[%emt 0:00:10]} 31. Ra7 {[%emt 0:00:10]} Kf8 {[%emt 0:04:15]} 32. g4 {[%emt 0:05:01]} 1/2-1/2

[Event "Slovakia Open 2022"]
[Site "Bratislava"]
[Date "2022.10.01"]
[Round "6.26"]
[White "Shykhnenko, Hryhorii"]
[Black "Migalko, Dmitriy"]
[Result "0-1"]
[ECO "B23"]
[WhiteElo "1317"]
[BlackElo "1528"]
[Annotator "NA COMBH"]
[PlyCount "72"]
[EventDate "2022.09.30"]
[EventCountry "SVK"]
[SourceTitle "playchess.com"]
[Source "ChessBase"]
[SourceQuality "1"]
[TimeControl "2700+10"]

1. e4 {[%emt 0:00:02]} c5 {[%emt 0:01:02]} 2. Nc3 {[%emt 0:00:02]} e6 {[%emt 0:00:02]} 3. f4 {[%emt 0:00:01]} d5 {[%emt 0:00:03]} 4. Bb5+ {[%emt 0:00:03]} Nc6 {[%emt 0:00:02]} 5. d3 {[%emt 0:00:03]} d4 {[%emt 0:00:03]} 6. Nce2 {[%emt 0:00:03]} Qa5+ {[%emt 0:00:01]} 7. Bd2 {[%emt 0:00:27]} Qxb5 {[%emt 0:00:10]} 8. Rb1 {[%emt 0:00:35]} Qb6 {[%emt 0:00:08]} 9. Nf3 {[%emt 0:00:00]} Bd6 {[%emt 0:00:05]} 10. O-O {[%emt 0:00:04]} Nge7 {[%emt 0:00:05]} 11. Qe1 {[%emt 0:00:08]} Bd7 {[%emt 0:00:18]} 12. c4 {[%emt 0:00:34]} Qc7 {[%emt 0:00:32]} 13. e5 {[%emt 0:00:03]} Bxe5 {[%emt 0:00:16]} 14. fxe5 {[%emt 0:00:02]} Nxe5 {[%emt 0:00:03]} 15. Bf4 {[%emt 0:00:56]} Nxf3+ {[%emt 0:00:02]} 16. Rxf3 {[%emt 0:00:06]} e5 {[%emt 0:00:10]} 17. Bd2 {[%emt 0:00:27]} Bc6 {[%emt 0:00:03]} 18. Rf1 {[%emt 0:00:46]} f6 {[%emt 0:00:39]} 19. Qg3 {[%emt 0:00:40]} O-O-O {[%emt 0:00:17]} 20. b4 {[%emt 0:00:54]} b6 {[%emt 0:01:02]} 21. bxc5 {[%emt 0:00:35]} bxc5 {[%emt 0:00:05]} 22. Qe1 {[%emt 0:01:19]} Rde8 {[%emt 0:01:57]} 23. Ba5 {[%emt 0:01:35]} Qd6 {[%emt 0:01:17]} 24. Ng3 {[%emt 0:01:48]} g6 {[%emt 0:00:37]} 25. Qc1 {[%emt 0:00:27]} Nf5 {[%emt 0:02:08]} 26. Nxf5 {[%emt 0:02:11]} gxf5 {[%emt 0:00:02]} 27. Rxf5 {[%emt 0:00:02]} Rhg8 {[%emt 0:00:05]} 28. Rf2 {[%emt 0:00:02]} e4 {[%emt 0:00:31]} 29. dxe4 {[%emt 0:01:32]} Rxe4 {[%emt 0:03:54]} 30. Qh6 {[%emt 0:01:15]} Reg4 {[%emt 0:00:40]} 31. Rbb2 {[%emt 0:01:55]} d3 {[%emt 0:05:15]} 32. Qxh7 {[%emt 0:03:40]} Rxg2+ {[%emt 0:05:23]} 33. Rxg2 {[%emt 0:00:33]} Qd4+ {[%emt 0:00:05]} 34. Kf1 {[%emt 0:01:14]} Qf4+ {[%emt 0:01:47]} 35. Rgf2 {[%emt 0:01:03]} Bg2+ {[%emt 0:00:24]} 36. Kg1 {[%emt 0:00:16]} Qc1+ {[%emt 0:00:03]} 0-1

[Event "Slovakia Open 2022"]
[Site "Bratislava"]
[Date "2022.10.01"]
[Round "6.27"]
[White "Pasti, Zsombor"]
[Black "Benci, Jozef"]
[Result "1-0"]
[ECO "B73"]
[WhiteElo "1884"]
[BlackElo "1873"]
[Annotator "NA RC COMBH"]
[PlyCount "71"]
[EventDate "2022.09.30"]
[EventCountry "SVK"]
[SourceTitle "playchess.com"]
[Source "ChessBase"]
[SourceQuality "1"]
[TimeControl "2700+10"]

1. e4 {[%emt 0:00:03]} c5 {[%emt 0:00:09]} 2. Nf3 {[%emt 0:00:02]} d6 {[%emt 0:00:02]} 3. d4 {[%emt 0:00:01]} cxd4 {[%emt 0:00:02]} 4. Nxd4 {[%emt 0:00:01]} Nf6 {[%emt 0:00:01]} 5. Nc3 {[%emt 0:00:02]} g6 {[%emt 0:00:01]} 6. Be3 {[%emt 0:00:03]} Bg7 {[%emt 0:00:05]} 7. Be2 {[%emt 0:00:02]} O-O {[%emt 0:00:11]} 8. O-O {[%emt 0:00:05]} Nc6 {[%emt 0:00:04]} 9. h3 {[%emt 0:00:16]} Bd7 {[%emt 0:00:38]} 10. Qd2 {[%emt 0:00:02]} Rc8 {[%emt 0:00:05]} 11. Rad1 {[%emt 0:00:13]} Ne5 {[%emt 0:00:30]} 12. Bh6 {[%emt 0:00:25]} Nc4 {[%emt 0:03:30]} 13. Bxc4 {[%emt 0:00:02]} Rxc4 {[%emt 0:00:01]} 14. Bxg7 {[%emt 0:00:02]} Kxg7 {[%emt 0:00:01]} 15. Rfe1 {[%emt 0:00:10]} Qa5 {[%emt 0:00:52]} 16. Nb3 {[%emt 0:00:52]} Qc7 {[%emt 0:03:20]} 17. Nd5 {[%emt 0:07:56]} Nxd5 {[%emt 0:02:35]} 18. exd5 {[%emt 0:00:03]} Ba4 {[%emt 0:03:10]} 19. c3 {[%emt 0:00:11]} Rc8 {[%emt 0:03:04]} 20. Qe3 {[%emt 0:00:03]} Kf8 {[%emt 0:10:34]} 21. Qxa7 {[%emt 0:01:49]} Bxb3 {[%emt 0:05:35]} 22. axb3 {[%emt 0:00:03]} Rc5 {[%emt 0:00:11]} 23. b4 {[%emt 0:00:02]} Rb5 {[%emt 0:00:31]} 24. Qd4 {[%emt 0:00:08]} Kg8 {[%emt 0:00:17]} 25. Qg4 {[%emt 0:00:44]} h5 {[%emt 0:01:22]} 26. Qe2 {[%emt 0:00:03]} Rb6 {[%emt 0:00:35]} 27. Qxe7 {[%emt 0:00:07]} Qc4 {[%emt 0:01:32]} 28. Qf6 {[%emt 0:01:12]} Rf8 {[%emt 0:00:37]} 29. Qd4 {[%emt 0:00:11]} Qb5 {[%emt 0:00:17]} 30. Re7 {[%emt 0:00:20]} Ra6 {[%emt 0:00:05]} 31. Rde1 {[%emt 0:00:07]} Ra2 {[%emt 0:01:01]} 32. R1e6 {[%emt 0:02:00]} Kh7 {[%emt 0:01:46]} 33. Qf6 {[%emt 0:00:36]} Kh6 {[%emt 0:02:13]} 34. Rxf7 {[%emt 0:00:21]} Ra1+ {[%emt 0:02:10]} 35. Kh2 {[%emt 0:00:36]} Rg8 {[%emt 0:00:22]} 36. Qf4# {[%emt 0:00:46]} 1-0

[Event "Slovakia Open 2022"]
[Site "Bratislava"]
[Date "2022.10.01"]
[Round "6.28"]
[White "Matejka, Simon"]
[Black "Park, Seonjae"]
[Result "1-0"]
[ECO "B22"]
[WhiteElo "1422"]
[BlackElo "1704"]
[Annotator "NA RC COMBH"]
[PlyCount "63"]
[EventDate "2022.09.30"]
[EventCountry "SVK"]
[SourceTitle "playchess.com"]
[Source "ChessBase"]
[SourceQuality "1"]
[TimeControl "2700+10"]

1. e4 {[%emt 0:00:05]} c5 {[%emt 0:00:00]} 2. c3 {[%emt 0:00:15]} Nf6 {[%emt 0:00:02]} 3. e5 {[%emt 0:00:11]} Nd5 {[%emt 0:00:10]} 4. Nf3 {[%emt 0:00:00]} Nc6 {[%emt 0:00:00]} 5. d4 {[%emt 0:00:04]} cxd4 {[%emt 0:00:00]} 6. cxd4 {[%emt 0:00:01]} d6 {[%emt 0:00:00]} 7. Bd3 {[%emt 0:00:27]} e6 {[%emt 0:01:03]} 8. O-O {[%emt 0:00:15]} Be7 {[%emt 0:00:23]} 9. Nc3 {[%emt 0:00:20]} Nb6 {[%emt 0:00:27]} 10. Be3 {[%emt 0:00:33]} O-O {[%emt 0:00:21]} 11. Rc1 {[%emt 0:00:14]} Bd7 {[%emt 0:01:02]} 12. Ne4 {[%emt 0:01:10]} dxe5 {[%emt 0:01:14]} 13. dxe5 {[%emt 0:01:04]} Nb4 {[%emt 0:01:57]} 14. Bb1 {[%emt 0:00:38]} N4d5 {[%emt 0:02:53]} 15. Qd3 {[%emt 0:00:50]} g6 {[%emt 0:00:35]} 16. Bh6 {[%emt 0:00:56]} Re8 {[%emt 0:00:01]} 17. g4 {[%emt 0:01:50]} Bc6 {[%emt 0:02:32]} 18. g5 {[%emt 0:02:11]} a6 {[%emt 0:06:04]} 19. Nfd2 {[%emt 0:02:41]} Bb5 {[%emt 0:00:42]} 20. Qf3 {[%emt 0:01:55]} Bxf1 {[%emt 0:00:03]} 21. Rxf1 {[%emt 0:00:07]} Qc7 {[%emt 0:03:37]} 22. Qg3 {[%emt 0:01:10]} Nd7 {[%emt 0:03:43]} 23. Nf3 {[%emt 0:01:55]} Qb6 {[%emt 0:02:57]} 24. Nf6+ {[%emt 0:00:49]} Bxf6 {[%emt 0:01:13]} 25. gxf6 {[%emt 0:00:14]} Qxb2 {[%emt 0:00:41]} 26. Bg7 {[%emt 0:00:26]} Nc3 {[%emt 0:01:36]} 27. Qg5 {[%emt 0:02:01]} Nc5 {[%emt 0:03:18]} 28. Bh8 {[%emt 0:04:38]} Kxh8 {[%emt 0:04:08]} 29. Qh6 {[%emt 0:00:15]} Rg8 {[%emt 0:00:25]} 30. Ng5 {[%emt 0:00:12]} Ne2+ {[%emt 0:00:48]} 31. Kh1 {[%emt 0:00:08]} Qxe5 {[%emt 0:00:36]} 32. Nxf7# {[%emt 0:00:04]} 1-0